Workbook

Sheet Forside
B3: Prissammenligningsværktøj
B4: En beregningsmodel til vurdering af omkostningen ved sortering af bygge- og anlægsaffald
B7: Værktøjet kan anvendes til at vise prisforskellen ved at sortere nedrivningsaffald på byggepladsen mod at aflevere blandet affald, men resultaterne illustrerer ikke den fulde omkostning ved nedrivning.
B9: Resultatet udregnes som priser for de enkelte fraktioner, for hele bygningen og som pris pr. m2.
B11: I fanen "Forudsætninger" kan du læse nærmere om, hvad der medtaget i modellen og hvilke priser der tages udgangspunkt i.
B12: Du har også her mulighed for at ændre priserne, hvis du vil tage udgangspunkt i andre priser end de priser som er indsamlet i projektet "Affaldsforebyggelse i byggeriet" udarbejdet i 2016.

Sheet Forudsætninger
B1: Forudsætninger
B3: Modellen bygger på omkostningerne eller indtjeningen ved at afhænde byggeaffald fra nedrivning.
B4: Udover udgifter til afhænding vil nedrivere også have udgifter til transport og sortering, som ikke er medregnet:
B5: - Transportudgifter (stigende ved længere transport)
B6: - Sortering i forbindelse med nedrivningsarbejdet (f.eks. lønomkostninger)
B8: Priser på de enkelte fraktioner
B10: - Priserne er angivet med udgangspunkt i de priser ejeren af affaldet skal betale for at afhænde affaldet, eksklusive
B11: transportomkostninger og sortering i forbindelse med nedrivning.
B12: - Alle negative priser i tabellen betyder at det er forbundet med en udgift at afhænde fraktionen. Positive priser betyder
B13: dermed at det er forbundet med en økonomisk gevinst af afhænde fraktionen (dette gælder kun for jern og metal)
B16: Priser for affaldsfraktioner (her kan du ændre priserne ved at indtaste nye tal i kolonnen til højre)
B17: Fraktion | I17: Kr. pr. ton
B18: Asfalt | D18: Genanvendelse | I18: -48
B19: Beton | D19: Ren | I19: -85
D20: Blandet | I20: -160
B21: Flamingo | D21: Genanvendelse (Thermozell) | I21: 0
D22: Forbrænding | I22: -428
B23: Gips | D23: Genanvendelse | I23: -700
D24: Deponi | I24: -897
B25: Glas | D25: Vinduesglas og termoruder | I25: -850
B26: Jern | D26: Over 500 kg | I26: 1050
B27: Kalkmørtel | D27: Genbrug (På mursten til Gamle Mursten) | I27: 0
D28: Genanvendelse (På mursten til blandet beton) | I28: -73
B29: Metal | D29: Over 100 kg* | I29: =AVERAGE(I32,I34,I36,I38,I40) -> 13490
D30: Under 100 kg* | I30: =AVERAGE(I31,I33,I35,I37,I39) -> 12410
D31: Gl. Kobber (under 100 kg) | I31: 28800
D32: Gl. Kobber (over 100 kg) | I32: 30800
D33: Zink (under 100 kg) | I33: 11150
D34: Zink (over 100 kg) | I34: 12150
D35: Bly (under 100 kg) | I35: 10600
D36: Bly (over 100 kg) | I36: 11600
D37: Rustfrit Stål (under 100 kg) | I37: 6050
D38: Rustfrit stål (over 100 kg) | I38: 6750
D39: Gl. Aluminium (under 100 kg) | I39: 5450
D40: Gl. Aluminium (over 100 kg) | I40: 6150
B41: Mineraluld | D41: Afskær | I41: 0
D42: Brugt | I42: -850
D43: Forurenet | I43: -1000
B44: Mursten | D44: Genbrug (Gamle Mursten) | I44: 0
D45: Genanvendelse (Blandet beton) | I45: -73
B46: Plast | D46: Genanvendelse PVC | I46: -1800
D47: Forbrænding | I47: -428
B48: Sanitet | D48: Deponi | I48: -897
B49: Tagpap | D49: Genanvendelse | I49: -700
D50: Forbrænding | I50: -428
B51: Teglsten | D51: Genbrug | I51: 200
D52: Genanvendelse | I52: -100
D53: Deponi (glaseret) | I53: -897
B54: Træ | D54: Forbrænding (gns. Takst for dedikerede og multifyrede anlæg) | I54: -428
B55: Blandet | D55: Usorteret affald | I55: -825
B56: Deponi (inkl. Statslig afgift) | D56: Mineralsk | I56: -897
D57: Farligt | I57: -671
D58: Blandet | I58: -857
D59: Forurenet jord | I59: -548
B60: * Gennemsnitspris på kobber, zink, bly, rustfrit stål og aluminium

Sheet Model
B1: Model
B3: Når du har indtastet mængder i tons for de udvalgte affaldsfraktioner, vil du kunne aflæse hovedresultaterne i afsnit 1 Resultater.
B5: 1. Resultater
B7: Hovedresultater
D8: Omkostning pr. m2 | E8: Omkostning hele byggeriet
B9: Ved kildesortering på byggeplads | D9: =IF(OR(B62="",B62=0),"Indtast antal m2 før kr. pr m2 kan beregnes.",H110/B62) -> Indtast antal m2 før kr. pr m2 kan beregnes. | E9: =H110 -> 0
B10: Ved aflevering af delvist sorteret byggeaffald | D10: =IF(OR(B62="",B62=0),"Indtast antal m2 før kr. pr m2 kan beregnes.",H121/B62) -> Indtast antal m2 før kr. pr m2 kan beregnes. | E10: =H121 -> 0
B12: 2. Indtast antal kg affald
B14: Indtast herunder
B15: Antal ton | C15: Fraktion
C16: Asfalt | D16: Genanvendelse
C17: Beton | D17: Ren
D18: Blandet
C19: Flamingo | D19: Genanvendelse (Thermozell)
D20: Forbrænding
C21: Gips | D21: Genanvendelse
D22: Deponi
C23: Glas | D23: Vinduesglas og termoruder
C24: Jern | D24: Over 500 kg
C25: Kalkmørtel | D25: Genbrug (På mursten til Gamle Mursten)
D26: Genanvendelse (På mursten til blandet beton)
C27: Metal | D27: Over 100 kg
D28: Under 100 kg
D29: Gl. Kobber (under 100 kg)
D30: Gl. Kobber (over 100 kg)
D31: Zink (under 100 kg)
D32: Zink (over 100 kg)
D33: Bly (under 100 kg)
D34: Bly (over 100 kg)
D35: Rustfrit Stål (under 100 kg)
D36: Rustfrit stål (over 100 kg)
D37: Gl. Aluminium (under 100 kg)
D38: Gl. Aluminium (over 100 kg)
C39: Mineraluld | D39: Afskær
D40: Brugt
D41: Forurenet
C42: Mursten | D42: Genbrug (Gamle Mursten)
D43: Genanvendelse (Blandet beton)
C44: Plast | D44: Genanvendelse PVC
D45: Forbrænding
C46: Sanitet | D46: Deponi
C47: Tagpap | D47: Genanvendelse
D48: Forbrænding
C49: Teglsten | D49: Genbrug
D50: Genanvendelse
D51: Deponi (glaseret)
C52: Træ | D52: Forbrænding (gns. Takst for dedikerede og multifyrede anlæg)
C53: Blandet | D53: Usorteret affald
C54: Deponi (inkl. Statslig afgift) | D54: Mineralsk
D55: Farligt
D56: Blandet
D57: Forurenet jord
B58: =SUM(B16:B57) -> 0 | C58: I alt
B60: Indtast herunder
B61: Bygningens størrelse i m2
B64: 3. Mellemregninger
B66: Prisberegning ved fuld sortering af bygge- og anlægsaffald
B67: Antal ton | C67: Fraktion | F67: Kr. pr. ton | G67: Kr. pr. kg | H67: Pris i kr. i alt | I67: Andel af samlet vægt | J67: Andel af samlede pris
B68: =B16 -> 0 | C68: Asfalt | D68: Genanvendelse | F68: =Forudsætninger!I18 -> -48 | G68: =F68/1000 -> -0.048 | H68: =B68*F68 -> 0 | I68: =(100/$B$110*B68) ->  | J68: =100/$H$110*H68 -> 
B69: 0 | C69: Beton | D69: Ren | F69: =Forudsætninger!I19 -> -85 | G69: =F69/1000 -> -0.085 | H69: =B69*F69 -> 0
B70: 0 | D70: Blandet | F70: =Forudsætninger!I20 -> -160 | G70: =F70/1000 -> -0.16 | H70: 0
B71: 0 | C71: Flamingo | D71: Genanvendelse (Thermozell) | F71: =Forudsætninger!I21 -> 0 | G71: 0 | H71: 0
B72: 0 | D72: Forbrænding | F72: =Forudsætninger!I22 -> -428 | G72: =F72/1000 -> -0.428 | H72: 0
B73: 0 | C73: Gips | D73: Genanvendelse | F73: =Forudsætninger!I23 -> -700 | G73: -0.7 | H73: 0
B74: 0 | D74: Deponi | F74: =Forudsætninger!I24 -> -897 | G74: -0.897 | H74: 0
B75: 0 | C75: Glas | D75: Vinduesglas og termoruder | F75: =Forudsætninger!I25 -> -850 | G75: -0.85 | H75: 0
B76: 0 | C76: Jern | D76: Over 500 kg | F76: =Forudsætninger!I26 -> 1050 | G76: 1.05 | H76: 0
B77: 0 | C77: Kalkmørtel | D77: Genbrug (På mursten til Gamle Mursten) | F77: =Forudsætninger!I27 -> 0 | G77: 0 | H77: 0
B78: 0 | D78: Genanvendelse (På mursten til blandet beton) | F78: =Forudsætninger!I28 -> -73 | G78: -0.073 | H78: 0
B79: 0 | C79: Metal | D79: Over 100 kg | F79: =Forudsætninger!I29 -> 13490 | G79: =F79/1000 -> 13.49 | H79: =B79*F79 -> 0 | I79: =(100/$B$110*B79) ->  | J79: =100/$H$110*H79 -> 
B80: 0 | D80: Under 100 kg | F80: =Forudsætninger!I30 -> 12410 | G80: =F80/1000 -> 12.41 | H80: =B80*F80 -> 0 | I80: =(100/$B$110*B80) -> 
D81: Gl. Kobber (under 100 kg) | F81: =Forudsætninger!I31 -> 28800 | G81: =-28.8*-1 -> 28.8
D82: Gl. Kobber (over 100 kg) | F82: =Forudsætninger!I32 -> 30800 | G82: =-30.8*-1 -> 30.8
D83: Zink (under 100 kg) | F83: =Forudsætninger!I33 -> 11150 | G83: =-11.15*-1 -> 11.15
D84: Zink (over 100 kg) | F84: =Forudsætninger!I34 -> 12150 | G84: =-12.15*-1 -> 12.15
D85: Bly (under 100 kg) | F85: =Forudsætninger!I35 -> 10600 | G85: =-10.6*-1 -> 10.6
D86: Bly (over 100 kg) | F86: =Forudsætninger!I36 -> 11600 | G86: =-11.6*-1 -> 11.6
D87: Rustfrit Stål (under 100 kg) | F87: =Forudsætninger!I37 -> 6050 | G87: =-6.05*-1 -> 6.05
D88: Rustfrit stål (over 100 kg) | F88: =Forudsætninger!I38 -> 6750 | G88: =-6.75*-1 -> 6.75
D89: Gl. Aluminium (under 100 kg) | F89: =Forudsætninger!I39 -> 5450 | G89: =-5.45*-1 -> 5.45
D90: Gl. Aluminium (over 100 kg) | F90: =Forudsætninger!I40 -> 6150 | G90: =-6.15*-1 -> 6.15
B91: 0 | C91: Mineraluld | D91: Afskær | F91: =Forudsætninger!I41 -> 0 | G91: 0 | H91: =B91*F91 -> 0 | I91: =(100/$B$110*B91) -> 
B92: 0 | D92: Brugt | F92: =Forudsætninger!I42 -> -850 | G92: -0.85 | H92: =B92*F92 -> 0
B93: 0 | D93: Forurenet | F93: =Forudsætninger!I43 -> -1000 | G93: -1 | H93: 0
B94: 0 | C94: Mursten | D94: Genbrug (Gamle Mursten) | F94: =Forudsætninger!I44 -> 0 | G94: 0 | H94: 0
B95: 0 | D95: Genanvendelse (Blandet beton) | F95: =Forudsætninger!I45 -> -73 | G95: -0.073 | H95: 0
B96: 0 | C96: Plast | D96: Genanvendelse PVC | F96: =Forudsætninger!I46 -> -1800 | G96: =F96/1000 -> -1.8 | H96: 0
B97: 0 | D97: Forbrænding | F97: =Forudsætninger!I47 -> -428 | G97: =F97/1000 -> -0.428 | H97: 0
B98: 0 | C98: Sanitet | D98: Deponi | F98: =Forudsætninger!I48 -> -897 | G98: =F98/1000 -> -0.897 | H98: 0
B99: 0 | C99: Tagpap | D99: Genanvendelse | F99: =Forudsætninger!I49 -> -700 | G99: -0.7 | H99: 0
B100: 0 | D100: Forbrænding | F100: =Forudsætninger!I50 -> -428 | G100: -0.428 | H100: 0
B101: 0 | C101: Teglsten | D101: Genbrug | F101: =Forudsætninger!I51 -> 200 | G101: 0.2 | H101: 0
B102: 0 | D102: Genanvendelse | F102: =Forudsætninger!I52 -> -100 | G102: -0.1 | H102: 0
B103: 0 | D103: Deponi (glaseret) | F103: =Forudsætninger!I53 -> -897 | G103: -0.897 | H103: 0
B104: 0 | C104: Træ | D104: Forbrænding (gns. Takst for dedikerede og multifyrede anlæg) | F104: =Forudsætninger!I54 -> -428 | G104: =F104/1000 -> -0.428 | H104: 0
B105: 0 | C105: Blandet | D105: Usorteret affald | F105: =Forudsætninger!I55 -> -825 | G105: =F105/1000 -> -0.825 | H105: 0
B106: 0 | C106: Deponi (inkl. Statslig afgift) | D106: Mineralsk | F106: =Forudsætninger!I56 -> -897 | G106: =F106/1000 -> -0.897 | H106: 0
B107: 0 | D107: Farligt | F107: =Forudsætninger!I57 -> -671 | G107: -0.671 | H107: 0
B108: 0 | D108: Blandet | F108: =Forudsætninger!I58 -> -857 | G108: -0.857 | H108: 0
B109: 0 | D109: Forurenet jord | F109: =Forudsætninger!I59 -> -548 | G109: -0.548 | H109: 0
B110: =SUM(B68:B109) -> 0 | C110: I alt | H110: =SUM(H68:H109) -> 0 | I110: =SUM(I68:I109) ->  | J110: =SUM(J68:J109) -> 
B113: Prisberegning ved delvist sortering af bygge- og anlægsaffald
B114: Antal ton | C114: Fraktion | D114: Note | F114: Kr. pr. ton | G114: Kr. pr. kg | H114: Pris i kr. i alt | I114: Andel af samlet vægt | J114: Andel af samlede pris
B115: =B110-SUM(B116:B120) -> 0 | C115: Blandet | D115: Asfalt, gips, glas, kalkmørtel, mineraluld, mursten, tegl og blandet affald i øvrigt | F115: =H115/B115 ->  | G115: =F115/1000 ->  | H115: =B115*F105 -> 0 | I115: =B115/B$121*100 ->  | J115: =H115/H$121*100 -> 
B116: =SUM(B69:B70) -> 0 | C116: Beton | D116: Ren- og blandet beton | F116: =H116/B116 ->  | G116: =F116/1000 ->  | H116: =SUM(H69:H70) -> 0 | I116: =B116/B$121*100 ->  | J116: =H116/H$121*100 -> 
B117: =SUM(B71+B72+B96+B97+B99+B100+B104) -> 0 | C117: Brændbart | D117: Flamingo, plast, tagpap og træ | H117: =SUM(H71+H72+H96+H97+H99+H100+H104) -> 0
B118: =SUM(B79:B79) -> 0 | C118: Metal | D118: Metal | H118: =SUM(H79:H79) -> 0
B119: =SUM(B76:B76) -> 0 | C119: Jern | D119: Jern | H119: =SUM(H76:H76) -> 0
B120: =SUM(B106:B109,B74+B98+B103) -> 0 | C120: Deponi | D120: Gips (deponi), sanitet, glaseret tegl og deponi i øvrigt | H120: =SUM(H106:H109)+H74+H98+H103 -> 0
B121: =SUM(B115:B120) -> 0 | C121: I alt | H121: =SUM(H115:H120) -> 0 | I121: =SUM(I115:I120) ->  | J121: =SUM(J115:J120) -> 
